[Event "Titled Tuesday Blitz March 21 Late 2023"]
[White "Mendez Fortes, Eduardo Jesus"]
[Black "Yuan, Qingyu"]
[WhiteFideId "3502376"]
[BlackFideId "8609772"]
[WhiteElo "2307"]
[BlackElo "2359"]
[Result "1-0"]
[Round "02"]
[TimeControl "180+2"]
[Date "2023.03.21"]
[WhiteClock "0:00:20"]
[BlackClock "0:00:02"]

1. e4 {[%clk 0:03:00]}  e5 {[%clk 0:02:59]} 2. Nf3 {[%clk 0:03:01]}  Nc6 {[%clk 0:02:59]} 3. Bb5 {[%clk 0:03:00]}  Nf6 {[%clk 0:03:00]} 4. O-O {[%clk 0:03:00]}  Nxe4 {[%clk 0:03:00]} 5. Re1 {[%clk 0:03:01]}  Nd6 {[%clk 0:03:01]} 6. Nxe5 {[%clk 0:03:02]}  Be7 {[%clk 0:03:01]} 7. Bf1 {[%clk 0:03:00]}  Nxe5 {[%clk 0:03:00]} 8. Rxe5 {[%clk 0:03:01]}  O-O {[%clk 0:03:01]} 9. Nc3 {[%clk 0:03:01]}  Ne8 {[%clk 0:02:59]} 10. Nd5 {[%clk 0:03:00]}  Bd6 {[%clk 0:02:56]} 11. Re1 {[%clk 0:03:01]}  c6 {[%clk 0:02:56]} 12. Ne3 {[%clk 0:03:00]}  Be7 {[%clk 0:02:50]} 13. c4 {[%clk 0:02:55]}  Nc7 {[%clk 0:02:35]} 14. b3 {[%clk 0:02:52]}  Bf6 {[%clk 0:02:26]} 15. d4 {[%clk 0:02:52]}  d5 {[%clk 0:02:25]} 16. Bb2 {[%clk 0:02:23]}  Be6 {[%clk 0:02:04]} 17. c5 {[%clk 0:02:18]}  Qd7 {[%clk 0:02:00]} 18. b4 {[%clk 0:02:17]}  Rfe8 {[%clk 0:01:53]} 19. a4 {[%clk 0:02:16]}  a6 {[%clk 0:01:47]} 20. Qb3 {[%clk 0:02:16]}  g6 {[%clk 0:01:36]} 21. Bc3 {[%clk 0:02:00]}  h5 {[%clk 0:01:26]} 22. Rab1 {[%clk 0:01:58]}  Bf5 {[%clk 0:01:16]} 23. Rbd1 {[%clk 0:01:49]}  Bg5 {[%clk 0:01:05]} 24. Nxf5 {[%clk 0:01:45]}  Qxf5 {[%clk 0:01:06]} 25. b5 {[%clk 0:01:45]}  axb5 {[%clk 0:01:04]} 26. axb5 {[%clk 0:01:45]}  Rxe1 {[%clk 0:00:56]} 27. Rxe1 {[%clk 0:01:44]}  cxb5 {[%clk 0:00:25]} 28. Bxb5 {[%clk 0:01:41]}  Nxb5 {[%clk 0:00:25]} 29. Qxb5 {[%clk 0:01:41]}  Qc2 {[%clk 0:00:23]} 30. Ba5 {[%clk 0:01:37]}  Qa2 {[%clk 0:00:12]} 31. Bb4 {[%clk 0:01:10]}  Qa6 {[%clk 0:00:05]} 32. Qd7 {[%clk 0:01:02]}  Qc4 {[%clk 0:00:02]} 33. Qxb7 {[%clk 0:00:56]}  Ra2 {[%clk 0:00:02]} 34. c6 {[%clk 0:00:51]}  Qxd4 {[%clk 0:00:02]} 35. Re8+ {[%clk 0:00:44]}  Kg7 {[%clk 0:00:02]} 36. Bf8+ {[%clk 0:00:44]}  Kf6 {[%clk 0:00:02]} 37. Qe7+ {[%clk 0:00:41]}  Kf5 {[%clk 0:00:03]} 38. Qxf7+ {[%clk 0:00:41]}  Bf6 {[%clk 0:00:03]} 39. Qe6+ {[%clk 0:00:30]}  Kg5 {[%clk 0:00:03]} 40. h4+ {[%clk 0:00:25]}  Kxh4 {[%clk 0:00:01]} 41. Qh3+ {[%clk 0:00:22]}  Kg5 {[%clk 0:00:01]} 42. Qg3+ {[%clk 0:00:23]}  Qg4 {[%clk 0:00:02]} 43. f4+ {[%clk 0:00:21]}  Kf5 {[%clk 0:00:01]} 44. Qd3+ {[%clk 0:00:21]}  Kxf4 {[%clk 0:00:01]} 45. Bh6+ {[%clk 0:00:20]}  g5 {[%clk 0:00:01]} 46. Qe3+ {[%clk 0:00:20]}  Kf5 {[%clk 0:00:02]} 47. Qe6+ {[%clk 0:00:20]}  Kg6 {[%clk 0:00:02]} 48. Rg8+ {[%clk 0:00:20]}  Kh7 {[%clk 0:00:02]} 49. Qf7+ {[%clk 0:00:20]}  Kxh6 {[%clk 0:00:02]} 50. Qg6# {[%clk 0:00:20]} 1-0


[Site "https://www.chess.com"]

[Event "Titled Tuesday Blitz March 21 Late 2023"]
[White "Tanenbaum, Zachary"]
[Black "Petukhov, Dmitry"]
[WhiteFideId "2060850"]
[BlackFideId "4142748"]
[WhiteElo "2175"]
[BlackElo "2311"]
[Result "1-0"]
[Round "02"]
[TimeControl "180+2"]
[Date "2023.03.21"]
[WhiteClock "0:00:10"]
[BlackClock "0:00:01"]

1. e4 {[%clk 0:03:00]}  c5 {[%clk 0:02:59]} 2. Nf3 {[%clk 0:03:01]}  d6 {[%clk 0:02:59]} 3. d4 {[%clk 0:03:01]}  cxd4 {[%clk 0:03:00]} 4. Nxd4 {[%clk 0:03:02]}  Nf6 {[%clk 0:02:57]} 5. Nc3 {[%clk 0:03:02]}  Nc6 {[%clk 0:02:55]} 6. Bg5 {[%clk 0:03:02]}  Bd7 {[%clk 0:02:53]} 7. Bxf6 {[%clk 0:03:01]}  gxf6 {[%clk 0:02:44]} 8. Nf5 {[%clk 0:03:01]}  Qa5 {[%clk 0:02:41]} 9. Bd3 {[%clk 0:02:17]}  e6 {[%clk 0:02:31]} 10. Ne3 {[%clk 0:02:15]}  Rg8 {[%clk 0:02:16]} 11. O-O {[%clk 0:02:13]}  Ne5 {[%clk 0:02:12]} 12. f4 {[%clk 0:02:11]}  Qb6 {[%clk 0:02:04]} 13. Qd2 {[%clk 0:02:01]}  Ng4 {[%clk 0:01:34]} 14. Rae1 {[%clk 0:01:50]}  Bh6 {[%clk 0:01:33]} 15. Kh1 {[%clk 0:01:44]}  Nxe3 {[%clk 0:01:32]} 16. Rxe3 {[%clk 0:01:45]}  Qxb2 {[%clk 0:01:27]} 17. Rh3 {[%clk 0:01:40]}  Rg6 {[%clk 0:01:14]} 18. Rb1 {[%clk 0:01:33]}  Qa3 {[%clk 0:01:07]} 19. e5 {[%clk 0:01:29]}  f5 {[%clk 0:01:06]} 20. Nb5 {[%clk 0:01:27]}  Qc5 {[%clk 0:00:57]} 21. Nxd6+ {[%clk 0:01:22]}  Kf8 {[%clk 0:00:57]} 22. Rxb7 {[%clk 0:01:20]}  Bc6 {[%clk 0:00:56]} 23. Rxf7+ {[%clk 0:01:17]}  Kg8 {[%clk 0:00:56]} 24. Rg3 {[%clk 0:01:03]}  Rb8 {[%clk 0:00:45]} 25. Rxg6+ {[%clk 0:01:02]}  hxg6 {[%clk 0:00:46]} 26. h3 {[%clk 0:00:40]}  Rb1+ {[%clk 0:00:34]} 27. Kh2 {[%clk 0:00:40]}  Qg1+ {[%clk 0:00:19]} 28. Kg3 {[%clk 0:00:41]}  Bxg2 {[%clk 0:00:17]} 29. Qf2 {[%clk 0:00:16]}  Bxf4+ {[%clk 0:00:15]} 30. Qxf4 {[%clk 0:00:16]}  Be4+ {[%clk 0:00:08]} 31. Kh4 {[%clk 0:00:15]}  Qe1+ {[%clk 0:00:01]} 32. Kg5 {[%clk 0:00:14]}  Bxd3 {[%clk 0:00:01]} 33. Kf6 {[%clk 0:00:11]}  Qc3 {[%clk 0:00:01]} 34. Rf8+ {[%clk 0:00:10]} 1-0


[Site "https://www.chess.com"]

[Event "Titled Tuesday Blitz March 21 Late 2023"]
[White "Ehlvest, Jaan"]
[Black "Mahdavi, Reza"]
[WhiteFideId "4500016"]
[BlackFideId "12595926"]
[WhiteElo "2442"]
[BlackElo "2208"]
[Result "1-0"]
[Round "02"]
[TimeControl "180+2"]
[Date "2023.03.21"]
[WhiteClock "0:00:23"]
[BlackClock "0:00:01"]

1. e4 {[%clk 0:02:52]}  c5 {[%clk 0:02:58]} 2. Nf3 {[%clk 0:02:52]}  e6 {[%clk 0:02:59]} 3. g3 {[%clk 0:02:50]}  Nc6 {[%clk 0:02:58]} 4. Bg2 {[%clk 0:02:50]}  Nf6 {[%clk 0:02:58]} 5. d3 {[%clk 0:02:50]}  d6 {[%clk 0:02:54]} 6. O-O {[%clk 0:02:49]}  Be7 {[%clk 0:02:55]} 7. Re1 {[%clk 0:02:49]}  O-O {[%clk 0:02:55]} 8. c3 {[%clk 0:02:49]}  e5 {[%clk 0:02:55]} 9. h3 {[%clk 0:02:49]}  h6 {[%clk 0:02:49]} 10. d4 {[%clk 0:02:49]}  cxd4 {[%clk 0:02:49]} 11. cxd4 {[%clk 0:02:49]}  exd4 {[%clk 0:02:50]} 12. Nxd4 {[%clk 0:02:48]}  Nxd4 {[%clk 0:02:51]} 13. Qxd4 {[%clk 0:02:48]}  Be6 {[%clk 0:02:51]} 14. Nc3 {[%clk 0:02:47]}  Qa5 {[%clk 0:02:47]} 15. Bf4 {[%clk 0:02:42]}  Rfd8 {[%clk 0:02:45]} 16. Rad1 {[%clk 0:02:34]}  Rac8 {[%clk 0:02:37]} 17. a3 {[%clk 0:02:28]}  a6 {[%clk 0:02:35]} 18. Qd2 {[%clk 0:02:08]}  Qb6 {[%clk 0:02:21]} 19. Be3 {[%clk 0:02:06]}  Qb3 {[%clk 0:01:57]} 20. f4 {[%clk 0:02:03]}  Bf8 {[%clk 0:01:40]} 21. Qf2 {[%clk 0:02:03]}  Nd7 {[%clk 0:01:25]} 22. Bd4 {[%clk 0:01:55]}  Nc5 {[%clk 0:01:21]} 23. Kh2 {[%clk 0:01:47]}  Na4 {[%clk 0:01:16]} 24. Nxa4 {[%clk 0:01:36]}  Qxa4 {[%clk 0:01:15]} 25. Rd2 {[%clk 0:01:35]}  f6 {[%clk 0:01:12]} 26. g4 {[%clk 0:01:25]}  Bf7 {[%clk 0:01:07]} 27. Bc3 {[%clk 0:01:23]}  Re8 {[%clk 0:01:01]} 28. Qg3 {[%clk 0:01:11]}  Rcd8 {[%clk 0:00:52]} 29. h4 {[%clk 0:01:07]}  d5 {[%clk 0:00:52]} 30. Red1 {[%clk 0:00:46]}  Bd6 {[%clk 0:00:26]} 31. e5 {[%clk 0:00:43]}  fxe5 {[%clk 0:00:25]} 32. fxe5 {[%clk 0:00:43]}  Bf8 {[%clk 0:00:24]} 33. Bxd5 {[%clk 0:00:43]}  Bxd5 {[%clk 0:00:21]} 34. Rxd5 {[%clk 0:00:43]}  Qxd1 {[%clk 0:00:18]} 35. Rxd1 {[%clk 0:00:42]}  Rxd1 {[%clk 0:00:19]} 36. Qf3 {[%clk 0:00:40]}  Rd7 {[%clk 0:00:20]} 37. g5 {[%clk 0:00:38]}  hxg5 {[%clk 0:00:20]} 38. hxg5 {[%clk 0:00:38]}  g6 {[%clk 0:00:20]} 39. Qf6 {[%clk 0:00:37]}  Rh7+ {[%clk 0:00:18]} 40. Kg2 {[%clk 0:00:36]}  Rg7 {[%clk 0:00:17]} 41. e6 {[%clk 0:00:36]}  Kh7 {[%clk 0:00:17]} 42. Qf3 {[%clk 0:00:32]}  Rc8 {[%clk 0:00:04]} 43. Qh3+ {[%clk 0:00:25]}  Kg8 {[%clk 0:00:04]} 44. e7 {[%clk 0:00:26]}  Rxc3 {[%clk 0:00:01]} 45. exf8=Q+ {[%clk 0:00:23]} 1-0


[Site "https://www.chess.com"]

[Event "Titled Tuesday Blitz March 21 Late 2023"]
[White "Santos Ruiz, Miguel"]
[Black "Graif, William"]
[WhiteFideId "22291482"]
[BlackFideId "2609835"]
[WhiteElo "2504"]
[BlackElo "2205"]
[Result "1-0"]
[Round "02"]
[TimeControl "180+2"]
[Date "2023.03.21"]
[WhiteClock "0:00:33"]
[BlackClock "0:00:31"]

1. e4 {[%clk 0:03:00]}  e5 {[%clk 0:02:47]} 2. Nf3 {[%clk 0:03:00]}  Bc5 {[%clk 0:02:47]} 3. Nxe5 {[%clk 0:02:52]}  Nc6 {[%clk 0:02:45]} 4. Nxc6 {[%clk 0:02:38]}  dxc6 {[%clk 0:02:46]} 5. c3 {[%clk 0:02:37]}  Qh4 {[%clk 0:02:45]} 6. Qf3 {[%clk 0:02:28]}  Qh6 {[%clk 0:02:42]} 7. Na3 {[%clk 0:02:20]}  Bxa3 {[%clk 0:02:37]} 8. bxa3 {[%clk 0:02:21]}  Qg6 {[%clk 0:02:32]} 9. d3 {[%clk 0:02:16]}  Be6 {[%clk 0:02:12]} 10. Qg3 {[%clk 0:01:55]}  O-O-O {[%clk 0:02:06]} 11. Qxg6 {[%clk 0:01:52]}  hxg6 {[%clk 0:02:07]} 12. Be3 {[%clk 0:01:49]}  f5 {[%clk 0:02:05]} 13. f3 {[%clk 0:01:48]}  Nf6 {[%clk 0:02:03]} 14. Be2 {[%clk 0:01:45]}  Kb8 {[%clk 0:01:51]} 15. O-O {[%clk 0:01:40]}  Nd7 {[%clk 0:01:42]} 16. Rfd1 {[%clk 0:01:26]}  b6 {[%clk 0:01:36]} 17. h3 {[%clk 0:01:22]}  c5 {[%clk 0:01:35]} 18. d4 {[%clk 0:01:13]}  cxd4 {[%clk 0:01:32]} 19. cxd4 {[%clk 0:01:13]}  Nf6 {[%clk 0:01:26]} 20. Bd3 {[%clk 0:00:52]}  Bc8 {[%clk 0:01:21]} 21. Rac1 {[%clk 0:00:47]}  fxe4 {[%clk 0:01:07]} 22. fxe4 {[%clk 0:00:47]}  Bb7 {[%clk 0:01:06]} 23. Bf4 {[%clk 0:00:43]}  Rd7 {[%clk 0:01:03]} 24. d5 {[%clk 0:00:39]}  Re8 {[%clk 0:01:01]} 25. Re1 {[%clk 0:00:37]}  Rde7 {[%clk 0:00:56]} 26. d6 {[%clk 0:00:37]}  Rf7 {[%clk 0:00:42]} 27. Bc4 {[%clk 0:00:33]}  Rd7 {[%clk 0:00:36]} 28. dxc7+ {[%clk 0:00:33]}  Kc8 {[%clk 0:00:31]} 29. Bb5 {[%clk 0:00:33]} 1-0


[Site "https://www.chess.com"]

[Event "Titled Tuesday Blitz March 21 Late 2023"]
[White "Luo, Terry"]
[Black "EREBUNI91"]
[WhiteFideId "30931045"]
[WhiteElo "2265"]
[BlackElo "2733"]
[Result "1-0"]
[Round "02"]
[TimeControl "180+2"]
[Date "2023.03.21"]
[WhiteClock "0:00:12"]
[BlackClock "0:00:06"]

1. d4 {[%clk 0:03:00]}  Nf6 {[%clk 0:02:59]} 2. c4 {[%clk 0:03:00]}  e6 {[%clk 0:03:00]} 3. g3 {[%clk 0:03:01]}  d5 {[%clk 0:02:59]} 4. Nf3 {[%clk 0:03:01]}  Bb4+ {[%clk 0:02:59]} 5. Bd2 {[%clk 0:03:01]}  Be7 {[%clk 0:02:59]} 6. Bg2 {[%clk 0:03:02]}  O-O {[%clk 0:03:00]} 7. O-O {[%clk 0:03:02]}  c6 {[%clk 0:03:00]} 8. Qc2 {[%clk 0:03:03]}  b6 {[%clk 0:03:00]} 9. Bf4 {[%clk 0:03:02]}  Bb7 {[%clk 0:03:01]} 10. Rd1 {[%clk 0:03:01]}  Nbd7 {[%clk 0:03:01]} 11. b3 {[%clk 0:03:00]}  Rc8 {[%clk 0:03:00]} 12. Nc3 {[%clk 0:03:01]}  Re8 {[%clk 0:02:49]} 13. Rac1 {[%clk 0:03:00]}  Nh5 {[%clk 0:02:33]} 14. Bd2 {[%clk 0:02:59]}  Ba3 {[%clk 0:02:28]} 15. Rb1 {[%clk 0:02:59]}  Qc7 {[%clk 0:02:21]} 16. e4 {[%clk 0:02:53]}  dxe4 {[%clk 0:02:05]} 17. Nxe4 {[%clk 0:02:50]}  c5 {[%clk 0:02:06]} 18. Nfg5 {[%clk 0:02:37]}  cxd4 {[%clk 0:01:48]} 19. Nxh7 {[%clk 0:02:23]}  Red8 {[%clk 0:01:32]} 20. Nhg5 {[%clk 0:02:15]}  Ndf6 {[%clk 0:01:16]} 21. Nxf6+ {[%clk 0:02:09]}  Nxf6 {[%clk 0:01:17]} 22. Bf4 {[%clk 0:02:10]}  Qe7 {[%clk 0:01:11]} 23. Bxb7 {[%clk 0:02:03]}  Qxb7 {[%clk 0:01:12]} 24. b4 {[%clk 0:02:04]}  Qa6 {[%clk 0:01:07]} 25. b5 {[%clk 0:01:57]}  Qb7 {[%clk 0:01:02]} 26. Be5 {[%clk 0:01:57]}  Be7 {[%clk 0:00:51]} 27. Rxd4 {[%clk 0:01:56]}  Rc5 {[%clk 0:00:46]} 28. Rxd8+ {[%clk 0:01:33]}  Bxd8 {[%clk 0:00:47]} 29. Re1 {[%clk 0:01:32]}  Qc8 {[%clk 0:00:43]} 30. Bxf6 {[%clk 0:01:15]}  Bxf6 {[%clk 0:00:43]} 31. Qh7+ {[%clk 0:01:11]}  Kf8 {[%clk 0:00:43]} 32. Ne4 {[%clk 0:01:12]}  Rc7 {[%clk 0:00:35]} 33. Rd1 {[%clk 0:01:07]}  Ke7 {[%clk 0:00:32]} 34. Nd6 {[%clk 0:00:49]}  Qa8 {[%clk 0:00:24]} 35. Qh5 {[%clk 0:00:44]}  Qf8 {[%clk 0:00:20]} 36. Qf3 {[%clk 0:00:36]}  Rd7 {[%clk 0:00:16]} 37. Qc6 {[%clk 0:00:36]}  Qd8 {[%clk 0:00:17]} 38. Nc8+ {[%clk 0:00:30]}  Ke8 {[%clk 0:00:16]} 39. Rxd7 {[%clk 0:00:30]}  Qxd7 {[%clk 0:00:17]} 40. Qxd7+ {[%clk 0:00:30]}  Kxd7 {[%clk 0:00:18]} 41. Nxa7 {[%clk 0:00:31]}  Kd6 {[%clk 0:00:18]} 42. Nc6 {[%clk 0:00:20]}  Kc5 {[%clk 0:00:18]} 43. a4 {[%clk 0:00:19]}  Kxc4 {[%clk 0:00:18]} 44. h4 {[%clk 0:00:17]}  Bc3 {[%clk 0:00:16]} 45. g4 {[%clk 0:00:15]}  Bb4 {[%clk 0:00:06]} 46. g5 {[%clk 0:00:11]}  Bc5 {[%clk 0:00:06]} 47. h5 {[%clk 0:00:11]}  Bd4 {[%clk 0:00:04]} 48. h6 {[%clk 0:00:10]}  gxh6 {[%clk 0:00:05]} 49. gxh6 {[%clk 0:00:11]}  Bh8 {[%clk 0:00:04]} 50. Kg2 {[%clk 0:00:11]}  Kc5 {[%clk 0:00:03]} 51. Kf3 {[%clk 0:00:11]}  Kd6 {[%clk 0:00:04]} 52. Ke4 {[%clk 0:00:12]}  f5+ {[%clk 0:00:04]} 53. Kd3 {[%clk 0:00:12]}  Bf6 {[%clk 0:00:04]} 54. Kc4 {[%clk 0:00:11]}  e5 {[%clk 0:00:05]} 55. Nb4 {[%clk 0:00:11]}  e4 {[%clk 0:00:05]} 56. h7 {[%clk 0:00:11]}  f4 {[%clk 0:00:05]} 57. Nd5 {[%clk 0:00:11]}  Be5 {[%clk 0:00:05]} 58. Nxf4 {[%clk 0:00:12]}  e3 {[%clk 0:00:06]} 59. fxe3 {[%clk 0:00:12]} 1-0


[Site "https://www.chess.com"]

[Event "Titled Tuesday Blitz March 21 Late 2023"]
[White "Levitskiy, Andrey"]
[Black "Remolar Gallen, Jose"]
[WhiteFideId "14132885"]
[BlackFideId "2215187"]
[WhiteElo "2335"]
[BlackElo "2223"]
[Result "0-1"]
[Round "02"]
[TimeControl "180+2"]
[Date "2023.03.21"]
[WhiteClock "0:00:41"]
[BlackClock "0:00:17"]

1. e4 {[%clk 0:03:00]}  c5 {[%clk 0:02:59]} 2. Nf3 {[%clk 0:03:00]}  d6 {[%clk 0:03:00]} 3. d4 {[%clk 0:03:00]}  cxd4 {[%clk 0:03:00]} 4. Nxd4 {[%clk 0:03:01]}  Nf6 {[%clk 0:03:00]} 5. Nc3 {[%clk 0:03:02]}  a6 {[%clk 0:03:00]} 6. h3 {[%clk 0:03:02]}  e5 {[%clk 0:02:58]} 7. Nde2 {[%clk 0:03:03]}  h5 {[%clk 0:02:58]} 8. Bg5 {[%clk 0:03:03]}  Be7 {[%clk 0:02:51]} 9. Ng3 {[%clk 0:03:02]}  h4 {[%clk 0:02:48]} 10. Nf5 {[%clk 0:02:59]}  Bxf5 {[%clk 0:02:47]} 11. exf5 {[%clk 0:03:00]}  Nbd7 {[%clk 0:02:38]} 12. Bc4 {[%clk 0:02:57]}  Rc8 {[%clk 0:02:35]} 13. Bb3 {[%clk 0:02:56]}  Nc5 {[%clk 0:02:10]} 14. O-O {[%clk 0:02:54]}  Qd7 {[%clk 0:01:52]} 15. Bxf6 {[%clk 0:02:30]}  Bxf6 {[%clk 0:01:49]} 16. Qf3 {[%clk 0:02:30]}  Nxb3 {[%clk 0:01:29]} 17. axb3 {[%clk 0:02:29]}  Qc6 {[%clk 0:01:22]} 18. Nd5 {[%clk 0:02:26]}  Qxc2 {[%clk 0:01:04]} 19. Rac1 {[%clk 0:02:07]}  Qxc1 {[%clk 0:01:02]} 20. Rxc1 {[%clk 0:02:08]}  Rxc1+ {[%clk 0:01:02]} 21. Kh2 {[%clk 0:02:09]}  Bg5 {[%clk 0:00:34]} 22. f6 {[%clk 0:01:55]}  gxf6 {[%clk 0:00:32]} 23. Nxf6+ {[%clk 0:01:54]}  Ke7 {[%clk 0:00:10]} 24. Nd5+ {[%clk 0:01:53]}  Ke6 {[%clk 0:00:10]} 25. Qg4+ {[%clk 0:01:47]}  Kxd5 {[%clk 0:00:10]} 26. Qxg5 {[%clk 0:01:46]}  Rhc8 {[%clk 0:00:10]} 27. Qxh4 {[%clk 0:01:44]}  R8c2 {[%clk 0:00:08]} 28. Qf6 {[%clk 0:01:39]}  Rxb2 {[%clk 0:00:07]} 29. h4 {[%clk 0:01:39]}  Rcc2 {[%clk 0:00:06]} 30. Qxf7+ {[%clk 0:01:32]}  Kc6 {[%clk 0:00:03]} 31. Qf3+ {[%clk 0:01:02]}  Kc7 {[%clk 0:00:02]} 32. h5 {[%clk 0:00:31]}  Rxf2 {[%clk 0:00:03]} 33. Qd5 {[%clk 0:00:30]}  Rbd2 {[%clk 0:00:02]} 34. Qc4+ {[%clk 0:00:30]}  Kd7 {[%clk 0:00:02]} 35. Qg4+ {[%clk 0:00:27]}  Ke7 {[%clk 0:00:02]} 36. h6 {[%clk 0:00:27]}  Rxg2+ {[%clk 0:00:02]} 37. Kh3 {[%clk 0:00:24]}  Rxg4 {[%clk 0:00:02]} 38. Kxg4 {[%clk 0:00:25]}  Kf7 {[%clk 0:00:02]} 39. Kf3 {[%clk 0:00:26]}  Kg8 {[%clk 0:00:03]} 40. Ke3 {[%clk 0:00:27]}  Rb2 {[%clk 0:00:04]} 41. b4 {[%clk 0:00:27]}  Rb3+ {[%clk 0:00:04]} 42. Ke4 {[%clk 0:00:28]}  Rxb4+ {[%clk 0:00:05]} 43. Kd5 {[%clk 0:00:29]}  Rd4+ {[%clk 0:00:05]} 44. Ke6 {[%clk 0:00:29]}  a5 {[%clk 0:00:06]} 45. Kf5 {[%clk 0:00:30]}  a4 {[%clk 0:00:07]} 46. Kg6 {[%clk 0:00:31]}  Kh8 {[%clk 0:00:07]} 47. h7 {[%clk 0:00:32]}  a3 {[%clk 0:00:08]} 48. Kf6 {[%clk 0:00:32]}  a2 {[%clk 0:00:09]} 49. Ke6 {[%clk 0:00:33]}  a1=Q {[%clk 0:00:10]} 50. Ke7 {[%clk 0:00:34]}  b5 {[%clk 0:00:10]} 51. Ke6 {[%clk 0:00:34]}  b4 {[%clk 0:00:11]} 52. Ke7 {[%clk 0:00:34]}  b3 {[%clk 0:00:12]} 53. Ke6 {[%clk 0:00:35]}  b2 {[%clk 0:00:13]} 54. Ke7 {[%clk 0:00:36]}  b1=Q {[%clk 0:00:14]} 55. Ke6 {[%clk 0:00:37]}  e4 {[%clk 0:00:15]} 56. Ke7 {[%clk 0:00:37]}  e3 {[%clk 0:00:15]} 57. Ke6 {[%clk 0:00:38]}  e2 {[%clk 0:00:16]} 58. Ke7 {[%clk 0:00:39]}  e1=Q+ {[%clk 0:00:17]} 59. Kd7 {[%clk 0:00:40]}  Qb7+ {[%clk 0:00:17]} 60. Kd8 {[%clk 0:00:41]}  Qaa8# {[%clk 0:00:17]} 0-1


[Site "https://www.chess.com"]

[Event "Titled Tuesday Blitz March 21 Late 2023"]
[White "Bashirli, Nail"]
[Black "Schrik, Rachid"]
[WhiteFideId "13406809"]
[BlackFideId "1009818"]
[WhiteElo "2338"]
[BlackElo "2098"]
[Result "1-0"]
[Round "02"]
[TimeControl "180+2"]
[Date "2023.03.21"]
[WhiteClock "0:00:22"]
[BlackClock "0:00:16"]

1. e4 {[%clk 0:03:00]}  c5 {[%clk 0:02:59]} 2. Nc3 {[%clk 0:02:57]}  Nc6 {[%clk 0:02:59]} 3. Nf3 {[%clk 0:02:52]}  e5 {[%clk 0:02:57]} 4. Bc4 {[%clk 0:02:50]}  Be7 {[%clk 0:02:56]} 5. d3 {[%clk 0:02:49]}  d6 {[%clk 0:02:56]} 6. O-O {[%clk 0:02:50]}  Nf6 {[%clk 0:02:51]} 7. Nd5 {[%clk 0:02:49]}  Nxd5 {[%clk 0:02:42]} 8. Bxd5 {[%clk 0:02:49]}  O-O {[%clk 0:02:22]} 9. c3 {[%clk 0:02:35]}  Be6 {[%clk 0:02:20]} 10. h3 {[%clk 0:02:30]}  Bf6 {[%clk 0:02:11]} 11. Qb3 {[%clk 0:02:16]}  Qc8 {[%clk 0:01:42]} 12. Nh2 {[%clk 0:02:10]}  Bxd5 {[%clk 0:01:33]} 13. exd5 {[%clk 0:01:55]}  Ne7 {[%clk 0:01:31]} 14. f4 {[%clk 0:01:41]}  exf4 {[%clk 0:01:24]} 15. Bxf4 {[%clk 0:01:39]}  Qd7 {[%clk 0:01:19]} 16. Ng4 {[%clk 0:01:36]}  Bh4 {[%clk 0:00:52]} 17. a4 {[%clk 0:00:52]}  Ng6 {[%clk 0:00:42]} 18. Qc4 {[%clk 0:00:41]}  f5 {[%clk 0:00:26]} 19. Ne3 {[%clk 0:00:29]}  Rfe8 {[%clk 0:00:21]} 20. Rf3 {[%clk 0:00:23]}  Nxf4 {[%clk 0:00:20]} 21. Qxf4 {[%clk 0:00:23]}  g6 {[%clk 0:00:16]} 22. Qxh4 {[%clk 0:00:22]} 1-0


[Site "https://www.chess.com"]

[Event "Titled Tuesday Blitz March 21 Late 2023"]
[White "Bilych, Olexiy"]
[Black "Mayaud, Raphael"]
[WhiteFideId "14156504"]
[BlackFideId "627151"]
[WhiteElo "2320"]
[BlackElo "2191"]
[Result "1-0"]
[Round "02"]
[TimeControl "180+2"]
[Date "2023.03.21"]
[WhiteClock "0:00:36"]
[BlackClock "0:00:08"]

1. d4 {[%clk 0:03:00]}  Nf6 {[%clk 0:02:59]} 2. c4 {[%clk 0:02:59]}  c5 {[%clk 0:02:59]} 3. d5 {[%clk 0:02:59]}  b5 {[%clk 0:03:00]} 4. cxb5 {[%clk 0:02:59]}  a6 {[%clk 0:03:00]} 5. f3 {[%clk 0:02:58]}  e6 {[%clk 0:02:59]} 6. e4 {[%clk 0:02:56]}  exd5 {[%clk 0:02:57]} 7. e5 {[%clk 0:02:56]}  Qe7 {[%clk 0:02:50]} 8. Qe2 {[%clk 0:02:56]}  Ng8 {[%clk 0:02:50]} 9. Nc3 {[%clk 0:02:55]}  Bb7 {[%clk 0:02:49]} 10. Nh3 {[%clk 0:02:40]}  Qd8 {[%clk 0:02:46]} 11. Nf4 {[%clk 0:02:17]}  Ne7 {[%clk 0:02:28]} 12. Bd2 {[%clk 0:02:07]}  Nf5 {[%clk 0:01:18]} 13. Nfxd5 {[%clk 0:01:56]}  Nd4 {[%clk 0:01:14]} 14. Qe4 {[%clk 0:01:54]}  Be7 {[%clk 0:00:55]} 15. Bd3 {[%clk 0:01:46]}  Kf8 {[%clk 0:00:33]} 16. O-O {[%clk 0:01:37]}  axb5 {[%clk 0:00:30]} 17. Nxb5 {[%clk 0:01:34]}  Nbc6 {[%clk 0:00:29]} 18. Nd6 {[%clk 0:01:04]}  Bxd6 {[%clk 0:00:27]} 19. exd6 {[%clk 0:01:04]}  Ne6 {[%clk 0:00:19]} 20. Qg4 {[%clk 0:00:52]}  Ncd4 {[%clk 0:00:17]} 21. Nf4 {[%clk 0:00:52]}  Qb6 {[%clk 0:00:14]} 22. Nxe6+ {[%clk 0:00:44]}  Nxe6 {[%clk 0:00:13]} 23. Bc4 {[%clk 0:00:38]}  Qxd6 {[%clk 0:00:13]} 24. Bc3 {[%clk 0:00:38]}  Qc6 {[%clk 0:00:10]} 25. Bxe6 {[%clk 0:00:37]}  Qxe6 {[%clk 0:00:08]} 26. Qxg7+ {[%clk 0:00:36]}  Ke7 {[%clk 0:00:08]} 27. Rfe1 {[%clk 0:00:36]} 1-0


[Site "https://www.chess.com"]